[Event "XIV American Continental-ch 2019"]
[Site "Sao Paulo"]
[Date "2019.07.09"]
[Round "6.11"]
[White "Molina, Roberto Junio Brito"]
[Black "Sarkar, Justin"]
[Result "1/2-1/2"]
[ECO "A33"]
[WhiteElo "2464"]
[BlackElo "2389"]
[Annotator "ChessBase"]
[PlyCount "158"]
[EventDate "2019.07.05"]
[EventType "swiss"]
[EventCountry "BRA"]
[SourceTitle "playchess.com"]
[Source "ChessBase"]
[SourceQuality "1"]
[TimeControl "40/5400+30:1800+30"]

1. Nf3 {[%emt 0:04:41]} Nf6 {[%emt 0:11:18]} 2. c4 {[%emt 0:00:04]} c5 {[%emt 0:00:47]} 3. Nc3 {[%emt 0:00:16]} Nc6 {[%emt 0:01:54]} 4. d4 {[%emt 0:00:18]} cxd4 {[%emt 0:00:06]} 5. Nxd4 {[%emt 0:00:05]} e6 {[%emt 0:00:51]} 6. a3 {[%emt 0:04:07]} Bc5 {[%emt 0:01:23]} 7. e3 {[%emt 0:00:30]} O-O {[%emt 0:01:01]} 8. Be2 {[%emt 0:00:28]} d5 {[%emt 0:05:13]} 9. cxd5 {[%emt 0:02:51]} exd5 {[%emt 0:02:00]} 10. Nxc6 {[%emt 0:00:44]} bxc6 {[%emt 0:00:03]} 11. O-O {[%emt 0:00:34]} Bd6 {[%emt 0:02:45]} 12. b4 {[%emt 0:09:08]} a5 {[%emt 0:09:12]} 13. b5 {[%emt 0:02:42]} Be5 {[%emt 0:01:01]} 14. Bd2 {[%emt 0:05:01]} cxb5 {[%emt 0:01:17]} 15. f4 {[%emt 0:19:05]} Bxc3 {[%emt 0:00:48]} 16. Bxc3 {[%emt 0:00:03]} Ne4 {[%emt 0:00:38]} 17. Bd4 {[%emt 0:01:18]} Ba6 {[%emt 0:05:17]} 18. Bd3 {[%emt 0:00:32]} Qe7 {[%emt 0:03:05]} 19. Qe2 {[%emt 0:05:22]} Qb7 {[%emt 0:27:19]} 20. Rfb1 {[%emt 0:04:42]} Rfb8 {[%emt 0:06:44]} 21. Be5 {[%emt 0:04:51]} Rc8 {[%emt 0:00:16]} 22. Bxb5 {[%emt 0:02:06]} Bxb5 {[%emt 0:00:10]} 23. Rxb5 {[%emt 0:00:07]} Qa6 {[%emt 0:00:26]} 24. Qb2 {[%emt 0:05:24]} f6 {[%emt 0:02:14]} 25. Bd4 {[%emt 0:00:07]} Nc3 {[%emt 0:03:13]} 26. Bxc3 {[%emt 0:10:52]} Rxc3 {[%emt 0:00:02]} 27. Qxc3 {[%emt 0:01:03]} Qxb5 {[%emt 0:00:02]} 28. Rd1 {[%emt 0:00:19]} a4 {[%emt 0:01:58]} 29. Qd4 {[%emt 0:01:11]} Rc8 {[%emt 0:01:49]} 30. Qxd5+ {[%emt 0:00:33]} Qxd5 {[%emt 0:00:05]} 31. Rxd5 {[%emt 0:00:03]} Rc3 {[%emt 0:00:09]} 32. Kf2 {[%emt 0:00:12]} Rxa3 {[%emt 0:00:05]} 33. Ra5 {[%emt 0:01:39]} Kf7 {[%emt 0:02:20]} 34. Ra7+ {[%emt 0:00:24]} Kg6 {[%emt 0:01:48]} 35. h3 {[%emt 0:02:53]} h5 {[%emt 0:00:56]} 36. g4 {[%emt 0:01:34]} Ra2+ {[%emt 0:00:29]} 37. Kf3 {[%emt 0:00:17]} Rh2 {[%emt 0:06:25]} 38. gxh5+ {[%emt 0:08:47]} Kh6 {[%emt 0:00:56]} 39. Kg4 Re2 40. Ra8 {[%emt 0:00:58]} Kh7 {[%emt 0:00:39]} 41. Kf3 {[%emt 0:30:50]} Rh2 {[%emt 0:30:15]} 42. e4 {[%emt 0:00:39]} Rxh3+ {[%emt 0:00:00]} 43. Kg4 {[%emt 0:00:00]} Re3 {[%emt 0:00:00]} 44. Rxa4 {[%emt 0:00:00]} g6 {[%emt 0:00:00]} 45. Ra7+ {[%emt 0:00:00]} Kh6 {[%emt 0:00:00]} 46. hxg6 {[%emt 0:00:00]} Kxg6 {[%emt 0:00:00]} 47. f5+ {[%emt 0:00:00]} Kh6 {[%emt 0:00:00]} 48. Kf4 {[%emt 0:00:00]} Rb3 {[%emt 0:00:00]} 49. Rf7 {[%emt 0:00:00]} Rb6 {[%emt 0:00:00]} 50. Ke3 {[%emt 0:00:00]} Ra6 {[%emt 0:00:00]} 51. Re7 {[%emt 0:00:00]} Ra4 {[%emt 0:00:00]} 52. Kf3 {[%emt 0:00:00]} Rb4 {[%emt 0:03:36]} 53. Kf4 {[%emt 0:00:00]} Ra4 {[%emt 0:00:26]} 54. Rf7 {[%emt 0:00:00]} Ra6 {[%emt 0:00:09]} 55. Kg4 {[%emt 0:00:00]} Rb6 {[%emt 0:00:12]} 56. Ra7 {[%emt 0:00:00]} Rc6 {[%emt 0:00:17]} 57. Kf4 {[%emt 0:00:00]} Rb6 {[%emt 0:00:07]} 58. Ke3 {[%emt 0:00:00]} Rb3+ {[%emt 0:00:52]} 59. Kf4 {[%emt 0:00:00]} Rb6 {[%emt 0:00:01]} 60. Kg4 {[%emt 0:00:00]} Rb4 {[%emt 0:00:27]} 61. Re7 {[%emt 0:00:00]} Rb1 {[%emt 0:02:15]} 62. Rf7 {[%emt 0:00:00]} Rb6 {[%emt 0:00:15]} 63. Rf8 {[%emt 0:00:00]} Kg7 {[%emt 0:00:25]} 64. Re8 {[%emt 0:00:00]} Rb1 {[%emt 0:01:21]} 65. Re7+ {[%emt 0:00:09]} Kh6 {[%emt 0:00:08]} 66. Rc7 {[%emt 0:00:38]} Rg1+ {[%emt 0:01:15]} 67. Kf4 {[%emt 0:00:12]} Rf1+ {[%emt 0:00:36]} 68. Ke3 {[%emt 0:00:01]} Re1+ {[%emt 0:00:24]} 69. Kf3 {[%emt 0:00:01]} Rf1+ {[%emt 0:00:28]} 70. Ke2 {[%emt 0:00:02]} Ra1 {[%emt 0:00:09]} 71. Ke3 {[%emt 0:02:30]} Re1+ {[%emt 0:01:51]} 72. Kd4 {[%emt 0:00:04]} Rd1+ {[%emt 0:00:55]} 73. Kc5 {[%emt 0:00:08]} Kg5 {[%emt 0:00:33]} 74. Rc6 {[%emt 0:01:29]} Kf4 {[%emt 0:00:55]} 75. Re6 {[%emt 0:03:02]} Rd2 {[%emt 0:00:26]} 76. Kc6 {[%emt 0:00:42]} Rd4 {[%emt 0:00:36]} 77. Rxf6 {[%emt 0:01:18]} Kxe4 {[%emt 0:00:26]} 78. Rd6 {[%emt 0:00:21]} Rxd6+ {[%emt 0:00:07]} 79. Kxd6 {[%emt 0:00:01]} Kxf5 {[%emt 0:00:07]} 1/2-1/2

[Event "XIV American Continental-ch 2019"]
[Site "Sao Paulo"]
[Date "2019.07.09"]
[Round "6.12"]
[White "Delgado Ramirez, Neuris"]
[Black "Fernandez Reyes, Lisandro"]
[Result "1-0"]
[ECO "B02"]
[WhiteElo "2605"]
[BlackElo "2378"]
[Annotator "RC"]
[PlyCount "97"]
[EventDate "2019.07.05"]
[EventType "swiss"]
[EventCountry "BRA"]
[SourceTitle "playchess.com"]
[Source "ChessBase"]
[SourceQuality "1"]
[TimeControl "40/5400+30:1800+30"]

1. e4 {[%emt 0:19:22]} Nf6 {[%emt 0:00:00]} 2. Nc3 {[%emt 0:00:06]} d5 {[%emt 0:00:00]} 3. e5 {[%emt 0:00:15]} Nfd7 {[%emt 0:02:25]} 4. d4 {[%emt 0:01:04]} Nb6 {[%emt 0:00:05]} 5. Be3 {[%emt 0:01:11]} Nc6 {[%emt 0:02:21]} 6. a3 {[%emt 0:03:50]} g6 {[%emt 0:05:13]} 7. Qd2 {[%emt 0:01:40]} Bf5 {[%emt 0:02:57]} 8. Bb5 {[%emt 0:02:12]} Qd7 {[%emt 0:02:23]} 9. Na4 {[%emt 0:00:48]} Nxa4 {[%emt 0:04:28]} 10. Bxa4 {[%emt 0:00:15]} a6 {[%emt 0:00:32]} 11. Ne2 {[%emt 0:00:49]} Bg7 {[%emt 0:05:35]} 12. O-O {[%emt 0:04:06]} O-O {[%emt 0:04:16]} 13. Nf4 {[%emt 0:02:19]} Rad8 {[%emt 0:05:55]} 14. Rad1 {[%emt 0:00:30]} Qe8 {[%emt 0:02:58]} 15. Bb3 {[%emt 0:03:48]} e6 {[%emt 0:04:28]} 16. f3 {[%emt 0:01:59]} h5 {[%emt 0:02:40]} 17. Ne2 {[%emt 0:01:53]} f6 {[%emt 0:03:53]} 18. exf6 {[%emt 0:01:54]} Bxf6 {[%emt 0:00:05]} 19. Rfe1 {[%emt 0:03:43]} Qf7 {[%emt 0:00:40]} 20. Ba4 {[%emt 0:00:50]} Ne7 {[%emt 0:01:34]} 21. Bh6 {[%emt 0:01:29]} h4 {[%emt 0:03:39]} 22. Bxf8 {[%emt 0:02:08]} Rxf8 {[%emt 0:00:09]} 23. c3 {[%emt 0:00:02]} g5 {[%emt 0:06:23]} 24. Bc2 {[%emt 0:01:09]} Bxc2 {[%emt 0:04:06]} 25. Qxc2 {[%emt 0:00:16]} h3 {[%emt 0:00:18]} 26. g3 {[%emt 0:00:50]} Bg7 {[%emt 0:02:14]} 27. f4 {[%emt 0:01:11]} Nf5 {[%emt 0:04:10]} 28. Qd3 {[%emt 0:01:20]} Nd6 {[%emt 0:05:18]} 29. Rf1 {[%emt 0:00:38]} g4 {[%emt 0:00:06]} 30. Nc1 {[%emt 0:00:20]} c5 {[%emt 0:04:09]} 31. dxc5 {[%emt 0:01:07]} Ne4 {[%emt 0:01:11]} 32. Qe2 {[%emt 0:00:03]} Qf5 {[%emt 0:03:32]} 33. Nd3 {[%emt 0:00:03]} Rc8 {[%emt 0:01:12]} 34. Ne5 {[%emt 0:03:52]} Rxc5 {[%emt 0:03:16]} 35. Nxg4 {[%emt 0:00:58]} Rb5 {[%emt 0:03:19]} 36. Nf2 {[%emt 0:01:52]} Nd6 {[%emt 0:04:20]} 37. Rfe1 {[%emt 0:05:05]} Nc4 {[%emt 0:00:25]} 38. Nd3 {[%emt 0:00:28]} Rb6 {[%emt 0:00:22]} 39. Qf2 {[%emt 0:01:34]} d4 {[%emt 0:01:12]} 40. cxd4 {[%emt 0:02:15]} Rb3 {[%emt 0:00:27]} 41. Ne5 {[%emt 0:33:36]} Nxb2 {[%emt 0:21:09]} 42. Rd2 {[%emt 0:00:00]} Na4 {[%emt 0:00:47]} 43. g4 {[%emt 0:00:00]} Qf8 {[%emt 0:00:56]} 44. f5 {[%emt 0:00:00]} Bh6 {[%emt 0:04:29]} 45. f6 {[%emt 0:00:00]} Qxa3 {[%emt 0:03:37]} 46. f7+ {[%emt 0:00:00]} Kg7 {[%emt 0:00:44]} 47. Ra2 {[%emt 0:00:00]} Be3 {[%emt 0:02:01]} 48. Rxe3 {[%emt 0:00:00]} Rb1+ {[%emt 0:00:19]} 49. Re1 1-0

[Event "XIV American Continental-ch 2019"]
[Site "Sao Paulo"]
[Date "2019.07.09"]
[Round "6.13"]
[White "Gemy, Jose Daniel"]
[Black "Gareyev, Timur"]
[Result "0-1"]
[ECO "B06"]
[WhiteElo "2371"]
[BlackElo "2588"]
[Annotator "RC"]
[PlyCount "268"]
[EventDate "2019.07.05"]
[EventType "swiss"]
[EventCountry "BRA"]
[SourceTitle "playchess.com"]
[Source "ChessBase"]
[SourceQuality "1"]
[TimeControl "40/5400+30:1800+30"]

1. e4 {[%emt 0:08:25]} g6 {[%emt 0:00:00]} 2. d3 {[%emt 0:06:14]} Bg7 {[%emt 0:03:16]} 3. g3 {[%emt 0:00:15]} d5 {[%emt 0:00:07]} 4. Nd2 {[%emt 0:00:17]} e5 {[%emt 0:00:50]} 5. Bg2 {[%emt 0:00:33]} Ne7 {[%emt 0:00:01]} 6. h4 {[%emt 0:09:05]} h5 {[%emt 0:02:18]} 7. c3 {[%emt 0:03:55]} c5 {[%emt 0:10:19]} 8. exd5 {[%emt 0:05:41]} Nxd5 {[%emt 0:00:03]} 9. Ne4 {[%emt 0:00:11]} Na6 {[%emt 0:00:01]} 10. Qa4+ {[%emt 0:00:59]} Ke7 {[%emt 0:11:19]} 11. Qa3 {[%emt 0:21:44]} Qb6 {[%emt 0:06:17]} 12. Nf3 {[%emt 0:12:54]} Rd8 {[%emt 0:02:11]} 13. O-O {[%emt 0:01:08]} Kf8 {[%emt 0:00:19]} 14. d4 {[%emt 0:00:56]} exd4 {[%emt 0:00:13]} 15. cxd4 {[%emt 0:00:10]} Qb4 {[%emt 0:00:18]} 16. Qxb4 {[%emt 0:02:23]} cxb4 {[%emt 0:00:24]} 17. Bg5 {[%emt 0:03:21]} f6 18. Bd2 {[%emt 0:00:56]} b6 {[%emt 0:02:11]} 19. Rac1 {[%emt 0:01:38]} Bf5 {[%emt 0:01:04]} 20. Rfe1 {[%emt 0:00:37]} Rd7 {[%emt 0:06:46]} 21. Rc6 {[%emt 0:04:05]} Rad8 {[%emt 0:01:55]} 22. a3 {[%emt 0:06:56]} bxa3 {[%emt 0:05:22]} 23. bxa3 {[%emt 0:00:01]} Nac7 {[%emt 0:00:13]} 24. a4 {[%emt 0:02:06]} Re7 {[%emt 0:10:09]} 25. Nc3 {[%emt 0:04:27]} Bd7 {[%emt 0:05:50]} 26. Rd6 {[%emt 0:01:22]} Rxe1+ 27. Nxe1 {[%emt 0:00:01]} Nxc3 {[%emt 0:04:41]} 28. Bxc3 {[%emt 0:00:01]} Ke8 {[%emt 0:02:00]} 29. Be4 {[%emt 0:01:02]} f5 {[%emt 0:04:34]} 30. Bc6 {[%emt 0:01:28]} Bxc6 {[%emt 0:10:16]} 31. Rxc6 Nd5 {[%emt 0:00:03]} 32. Rxg6 {[%emt 0:00:10]} Kf7 {[%emt 0:03:59]} 33. Rc6 {[%emt 0:00:03]} Nxc3 {[%emt 0:03:42]} 34. Rxc3 {[%emt 0:00:01]} Rxd4 {[%emt 0:00:26]} 35. Rc7+ {[%emt 0:00:01]} Kg8 {[%emt 0:01:06]} 36. Nf3 {[%emt 0:04:11]} Rxa4 {[%emt 0:00:01]} 37. Rc8+ {[%emt 0:00:27]} Kf7 {[%emt 0:00:02]} 38. Rc7+ {[%emt 0:00:37]} Kg6 {[%emt 0:00:13]} 39. Rc6+ {[%emt 0:00:00]} Bf6 {[%emt 0:01:29]} 40. Ne5+ {[%emt 0:00:09]} Kg7 {[%emt 0:00:03]} 41. Rc7+ {[%emt 0:30:07]} Kg8 {[%emt 0:30:10]} 42. Rc8+ {[%emt 0:00:00]} Kh7 {[%emt 0:00:00]} 43. Rc7+ {[%emt 0:00:00]} Bg7 {[%emt 0:00:00]} 44. Rb7 {[%emt 0:00:00]} f4 {[%emt 0:00:00]} 45. Kg2 {[%emt 0:00:00]} fxg3 {[%emt 0:00:00]} 46. fxg3 {[%emt 0:00:00]} a5 {[%emt 0:00:00]} 47. Nd7 {[%emt 0:00:00]} Rb4 {[%emt 0:00:00]} 48. Nxb6 {[%emt 0:00:00]} Rb2+ {[%emt 0:00:00]} 49. Kf3 {[%emt 0:03:03]} Rb3+ {[%emt 0:00:00]} 50. Ke4 {[%emt 0:02:35]} Kg6 {[%emt 0:02:13]} 51. Ra7 {[%emt 0:00:21]} Rxb6 {[%emt 0:01:50]} 52. Rxa5 {[%emt 0:00:01]} Bh6 {[%emt 0:00:10]} 53. Kf3 {[%emt 0:00:54]} Rb3+ {[%emt 0:00:01]} 54. Kg2 {[%emt 0:00:10]} Be3 {[%emt 0:00:05]} 55. Kh2 {[%emt 0:01:16]} Rc3 {[%emt 0:03:52]} 56. Rd5 {[%emt 0:00:21]} Bc5 {[%emt 0:02:12]} 57. Rg5+ {[%emt 0:00:18]} Kh6 {[%emt 0:00:01]} 58. Rd5 {[%emt 0:00:47]} Bf2 {[%emt 0:01:20]} 59. Rg5 {[%emt 0:00:15]} Rc2 {[%emt 0:00:25]} 60. Rd5 {[%emt 0:00:22]} Bc5+ {[%emt 0:01:01]} 61. Kh3 {[%emt 0:00:42]} Bg1 {[%emt 0:00:55]} 62. Rd6+ {[%emt 0:00:30]} Kg7 {[%emt 0:00:02]} 63. g4 {[%emt 0:00:07]} hxg4+ {[%emt 0:01:03]} 64. Kxg4 {[%emt 0:00:06]} Rc4+ {[%emt 0:00:07]} 65. Kg3 {[%emt 0:00:46]} Bd4 {[%emt 0:00:24]} 66. Rd5 {[%emt 0:00:43]} Kf6 {[%emt 0:00:30]} 67. Rh5 {[%emt 0:00:40]} Be5+ {[%emt 0:00:12]} 68. Kf3 {[%emt 0:00:18]} Bc3 {[%emt 0:00:59]} 69. Kg3 {[%emt 0:00:35]} Be1+ {[%emt 0:00:02]} 70. Kh3 {[%emt 0:00:09]} Re4 {[%emt 0:01:11]} 71. Rh8 {[%emt 0:00:37]} Re3+ {[%emt 0:00:13]} 72. Kg4 {[%emt 0:00:18]} Rg3+ {[%emt 0:00:10]} 73. Kf4 {[%emt 0:00:49]} Ra3 {[%emt 0:00:17]} 74. Kg4 {[%emt 0:00:25]} Ra4+ {[%emt 0:00:08]} 75. Kh3 {[%emt 0:00:08]} Bd2 {[%emt 0:00:47]} 76. Rg8 {[%emt 0:00:55]} Bf4 {[%emt 0:00:31]} 77. Rh8 {[%emt 0:00:59]} Kg6 {[%emt 0:00:04]} 78. Rc8 {[%emt 0:00:19]} Re4 {[%emt 0:00:26]} 79. Rh8 {[%emt 0:00:32]} Be5 {[%emt 0:00:54]} 80. Rg8+ {[%emt 0:00:36]} Bg7 {[%emt 0:00:02]} 81. Kg3 {[%emt 0:00:18]} Rd4 {[%emt 0:00:26]} 82. Kh3 {[%emt 0:00:30]} Rc4 {[%emt 0:00:33]} 83. Kg3 {[%emt 0:00:07]} Re4 {[%emt 0:00:03]} 84. Kh3 {[%emt 0:00:25]} Ra4 {[%emt 0:00:11]} 85. Kg3 {[%emt 0:00:07]} Rb4 {[%emt 0:00:02]} 86. Kh3 {[%emt 0:00:05]} Ra4 {[%emt 0:00:05]} 87. Kg3 {[%emt 0:00:02]} Rc4 {[%emt 0:00:04]} 88. Kh3 {[%emt 0:00:03]} Kf7 {[%emt 0:00:16]} 89. Ra8 {[%emt 0:00:26]} Bf6 {[%emt 0:00:04]} 90. h5 {[%emt 0:01:34]} Rh4+ {[%emt 0:02:53]} 91. Kg3 {[%emt 0:00:05]} Rxh5 {[%emt 0:00:08]} 92. Kg4 {[%emt 0:00:33]} Rb5 {[%emt 0:00:16]} 93. Kf4 {[%emt 0:00:23]} Bd4 {[%emt 0:01:28]} 94. Ke4 {[%emt 0:00:26]} Bb6 {[%emt 0:00:03]} 95. Rh8 {[%emt 0:00:23]} Bc5 {[%emt 0:02:05]} 96. Rh7+ {[%emt 0:01:00]} Ke6 {[%emt 0:00:02]} 97. Rh6+ {[%emt 0:00:04]} Kd7 {[%emt 0:00:04]} 98. Rh5 {[%emt 0:00:10]} Kc6 {[%emt 0:00:01]} 99. Rh1 {[%emt 0:00:36]} Rb4+ {[%emt 0:00:21]} 100. Ke5 {[%emt 0:00:16]} Bd6+ {[%emt 0:00:02]} 101. Kf5 {[%emt 0:00:15]} Rc4 {[%emt 0:00:42]} 102. Ke6 {[%emt 0:01:06]} Bc5 {[%emt 0:00:04]} 103. Ke5 {[%emt 0:00:13]} Be3 {[%emt 0:00:40]} 104. Rh3 {[%emt 0:00:25]} Bd4+ {[%emt 0:00:24]} 105. Ke4 {[%emt 0:00:24]} Bg7+ {[%emt 0:00:34]} 106. Kf5 {[%emt 0:00:04]} Kd5 {[%emt 0:00:11]} 107. Re3 {[%emt 0:02:00]} Rc8 {[%emt 0:00:42]} 108. Re1 {[%emt 0:00:57]} Bd4 {[%emt 0:00:14]} 109. Re2 {[%emt 0:00:32]} Rf8+ {[%emt 0:00:01]} 110. Kg4 {[%emt 0:00:13]} Be5 {[%emt 0:00:07]} 111. Re1 {[%emt 0:01:08]} Rf4+ {[%emt 0:00:43]} 112. Kh3 {[%emt 0:00:18]} Rf2 {[%emt 0:00:39]} 113. Kg4 {[%emt 0:00:29]} Ke6 {[%emt 0:00:25]} 114. Rh1 {[%emt 0:00:37]} Rf4+ {[%emt 0:00:34]} 115. Kg5 {[%emt 0:00:22]} Rf3 {[%emt 0:00:52]} 116. Rh6+ {[%emt 0:00:24]} Kd5 {[%emt 0:00:01]} 117. Kg4 {[%emt 0:01:09]} Ke4 {[%emt 0:00:05]} 118. Rh4 {[%emt 0:01:00]} Rg3+ {[%emt 0:00:15]} 119. Kh5+ {[%emt 0:00:02]} Kf5 {[%emt 0:00:05]} 120. Ra4 {[%emt 0:00:49]} Rg8 {[%emt 0:04:34]} 121. Ra6 {[%emt 0:00:17]} Rg5+ {[%emt 0:00:41]} 122. Kh4 {[%emt 0:00:33]} Rg4+ {[%emt 0:00:01]} 123. Kh3 {[%emt 0:00:47]} Rg3+ {[%emt 0:00:03]} 124. Kh4 {[%emt 0:00:06]} Rb3 {[%emt 0:00:49]} 125. Ra5 {[%emt 0:00:29]} Rb4+ {[%emt 0:00:10]} 126. Kh5 {[%emt 0:00:24]} Rb7 {[%emt 0:01:53]} 127. Ra6 {[%emt 0:00:35]} Rb8 {[%emt 0:00:22]} 128. Rg6 {[%emt 0:00:42]} Rh8+ {[%emt 0:00:37]} 129. Rh6 {[%emt 0:00:01]} Rg8 {[%emt 0:00:07]} 130. Ra6 {[%emt 0:00:12]} Bc7 {[%emt 0:01:00]} 131. Rc6 {[%emt 0:00:51]} Rg7 {[%emt 0:00:02]} 132. Rc5+ {[%emt 0:00:54]} Be5 {[%emt 0:00:03]} 133. Rc6 {[%emt 0:00:02]} Rg5+ {[%emt 0:00:37]} 134. Kh4 {[%emt 0:00:22]} Rg2 {[%emt 0:00:30]} 0-1

[Event "XIV American Continental-ch 2019"]
[Site "Sao Paulo"]
[Date "2019.07.09"]
[Round "6.14"]
[White "Della Morte, German"]
[Black "Mecking, Henrique"]
[Result "1/2-1/2"]
[ECO "B81"]
[WhiteElo "2359"]
[BlackElo "2576"]
[Annotator "ChessBase"]
[PlyCount "101"]
[EventDate "2019.07.05"]
[EventType "swiss"]
[EventCountry "BRA"]
[SourceTitle "playchess.com"]
[Source "ChessBase"]
[SourceQuality "1"]
[TimeControl "40/5400+30:1800+30"]

1. e4 {[%emt 0:00:00]} c5 {[%emt 0:02:08]} 2. Nf3 {[%emt 0:00:00]} d6 {[%emt 0:00:09]} 3. d4 {[%emt 0:00:16]} cxd4 {[%emt 0:00:04]} 4. Nxd4 {[%emt 0:00:11]} Nf6 {[%emt 0:00:05]} 5. Nc3 {[%emt 0:00:28]} e6 {[%emt 0:00:05]} 6. g4 {[%emt 0:00:15]} h6 {[%emt 0:00:05]} 7. g5 {[%emt 0:00:20]} hxg5 {[%emt 0:00:05]} 8. Bxg5 {[%emt 0:00:06]} Nc6 {[%emt 0:01:49]} 9. Nb3 {[%emt 0:11:21]} a6 {[%emt 0:01:52]} 10. h4 {[%emt 0:02:41]} b5 {[%emt 0:07:47]} 11. a3 {[%emt 0:16:38]} Bb7 {[%emt 0:00:33]} 12. f4 {[%emt 0:06:07]} Be7 {[%emt 0:04:47]} 13. Rh3 {[%emt 0:30:10]} Qc7 {[%emt 0:31:29]} 14. Qd2 {[%emt 0:09:47]} O-O-O {[%emt 0:13:58]} 15. Qf2 {[%emt 0:01:45]} d5 {[%emt 0:05:31]} 16. e5 {[%emt 0:00:43]} d4 {[%emt 0:01:54]} 17. exf6 {[%emt 0:00:38]} gxf6 {[%emt 0:00:04]} 18. Bxf6 {[%emt 0:02:14]} Bxf6 {[%emt 0:01:38]} 19. Ne4 {[%emt 0:00:07]} Be7 {[%emt 0:05:54]} 20. O-O-O {[%emt 0:07:32]} Rd5 {[%emt 0:02:10]} 21. Be2 {[%emt 0:02:38]} Kb8 {[%emt 0:11:28]} 22. Rf1 {[%emt 0:02:35]} f5 {[%emt 0:04:22]} 23. Ned2 {[%emt 0:00:46]} a5 {[%emt 0:00:40]} 24. Bf3 {[%emt 0:00:39]} Rd6 {[%emt 0:00:41]} 25. Bxc6 {[%emt 0:00:38]} Bxc6 {[%emt 0:00:44]} 26. Nxd4 {[%emt 0:00:14]} Bf6 {[%emt 0:00:17]} 27. N4f3 {[%emt 0:01:30]} Rc8 {[%emt 0:00:46]} 28. Ne5 {[%emt 0:02:05]} Bxe5 {[%emt 0:00:36]} 29. fxe5 {[%emt 0:00:04]} Rd5 {[%emt 0:00:06]} 30. Nf3 {[%emt 0:00:48]} b4 {[%emt 0:00:08]} 31. axb4 {[%emt 0:01:19]} axb4 {[%emt 0:00:19]} 32. Nd4 {[%emt 0:00:43]} Ba4 {[%emt 0:02:36]} 33. Rd1 {[%emt 0:00:15]} Qxe5 {[%emt 0:00:35]} 34. Re3 {[%emt 0:00:39]} Qc7 {[%emt 0:00:34]} 35. Rxe6 {[%emt 0:00:23]} Rcd8 {[%emt 0:00:38]} 36. Re2 {[%emt 0:00:49]} Qc4 {[%emt 0:00:35]} 37. Qg3+ {[%emt 0:00:31]} f4 {[%emt 0:00:25]} 38. Qxf4+ {[%emt 0:00:05]} Ka8 {[%emt 0:00:02]} 39. Qf3 {[%emt 0:00:52]} Bc6 {[%emt 0:00:52]} 40. Red2 {[%emt 0:00:32]} Qa6 {[%emt 0:00:48]} 41. Kb1 {[%emt 0:06:04]} Rxd4 {[%emt 0:01:19]} 42. Rxd4 {[%emt 0:01:57]} Bxf3 {[%emt 0:00:04]} 43. Rxd8+ {[%emt 0:00:04]} Ka7 {[%emt 0:00:10]} 44. R8d7+ {[%emt 0:01:01]} Kb6 {[%emt 0:07:47]} 45. R1d6+ {[%emt 0:01:06]} Bc6 {[%emt 0:00:01]} 46. Rf6 {[%emt 0:01:19]} b3 {[%emt 0:00:57]} 47. Rdd6 {[%emt 0:07:19]} bxc2+ {[%emt 0:00:13]} 48. Kxc2 {[%emt 0:02:07]} Qc4+ {[%emt 0:00:11]} 49. Kd2 {[%emt 0:01:08]} Qb4+ {[%emt 0:00:08]} 50. Kc2 {[%emt 0:02:07]} Qc4+ {[%emt 0:01:44]} 51. Kd2 {[%emt 0:00:23]} 1/2-1/2

[Event "XIV American Continental-ch 2019"]
[Site "Sao Paulo"]
[Date "2019.07.09"]
[Round "6.15"]
[White "Barbosa, Evandro Amorim"]
[Black "Cadilhac, Igor Tokuichi Kikuch"]
[Result "1-0"]
[ECO "C50"]
[WhiteElo "2506"]
[BlackElo "2291"]
[Annotator "ChessBase"]
[PlyCount "65"]
[EventDate "2019.07.05"]
[EventType "swiss"]
[EventCountry "BRA"]
[SourceTitle "playchess.com"]
[Source "ChessBase"]
[SourceQuality "1"]
[TimeControl "40/5400+30:1800+30"]

1. e4 {[%emt 0:02:32]} e5 {[%emt 0:00:00]} 2. Nf3 {[%emt 0:00:25]} Nc6 {[%emt 0:00:00]} 3. Bc4 {[%emt 0:02:01]} Bc5 {[%emt 0:00:00]} 4. d3 {[%emt 0:00:38]} Nf6 {[%emt 0:00:37]} 5. O-O {[%emt 0:00:10]} d6 {[%emt 0:00:26]} 6. c3 {[%emt 0:00:14]} a6 {[%emt 0:00:38]} 7. Bb3 {[%emt 0:03:05]} Ba7 {[%emt 0:00:07]} 8. Nbd2 {[%emt 0:00:54]} O-O {[%emt 0:00:08]} 9. h3 {[%emt 0:00:31]} Be6 {[%emt 0:00:08]} 10. Bc2 {[%emt 0:01:42]} h6 {[%emt 0:05:23]} 11. Re1 {[%emt 0:00:48]} Re8 {[%emt 0:00:15]} 12. Nf1 {[%emt 0:01:09]} d5 {[%emt 0:03:30]} 13. exd5 {[%emt 0:00:11]} Bxd5 {[%emt 0:00:23]} 14. Ng3 {[%emt 0:01:05]} Nd7 {[%emt 0:13:16]} 15. Nh2 {[%emt 0:30:45]} Nf8 {[%emt 0:09:37]} 16. Qh5 {[%emt 0:04:08]} Qf6 {[%emt 0:19:25]} 17. Ng4 {[%emt 0:06:22]} Qg6 {[%emt 0:00:11]} 18. Bxh6 {[%emt 0:03:28]} Be6 {[%emt 0:16:31]} 19. Bd2 {[%emt 0:04:17]} f5 {[%emt 0:02:32]} 20. Qxg6 {[%emt 0:01:00]} Nxg6 {[%emt 0:00:01]} 21. Nh2 {[%emt 0:00:31]} Rad8 {[%emt 0:01:53]} 22. Nf3 {[%emt 0:01:08]} Bd5 {[%emt 0:04:20]} 23. Bg5 {[%emt 0:04:56]} Rd7 {[%emt 0:05:14]} 24. Nxf5 {[%emt 0:01:06]} Rf8 {[%emt 0:01:59]} 25. N5h4 {[%emt 0:01:46]} Nxh4 {[%emt 0:02:22]} 26. Bxh4 {[%emt 0:00:20]} Bxf3 {[%emt 0:00:16]} 27. gxf3 {[%emt 0:00:09]} Rxf3 {[%emt 0:00:17]} 28. Kg2 {[%emt 0:00:22]} Rf8 {[%emt 0:00:42]} 29. Re4 {[%emt 0:01:06]} Ne7 {[%emt 0:05:42]} 30. Rxe5 {[%emt 0:05:40]} Nf5 {[%emt 0:00:47]} 31. Bg5 {[%emt 0:01:03]} Kh8 {[%emt 0:05:42]} 32. d4 {[%emt 0:01:19]} Nd6 {[%emt 0:02:20]} 33. Be7 {[%emt 0:01:48]} 1-0